fUST/lending_fUST_20240329
["ID","MTS","AMOUNT","RATE_DAILY","PERIOD"]
[320865259,1711651608154,-191.666687,0.00036986,2]
[320865260,1711651608174,-265.979129,0.00053003,120]
[320865261,1711651608196,-283.297314,0.00053127,2]
[320865262,1711651608218,-6183.21331655,0.00053482,2]
[320865362,1711651837766,-1259.5406353,0.00052929,2]
[320865375,1711651837884,-353.3422964,0.00053481,4]
[320865377,1711651837894,-18716.78668345,0.00053482,2]
[320865379,1711651837904,-283.297314,0.00053565,2]
[320865381,1711651837914,-4002.85028915,0.00053788,4]
[320865383,1711651837923,-198.60214398,0.00053793,4]
[320865385,1711651837932,-352.75464936,0.00054691,2]
[320865387,1711651837942,-352.75464932,0.00054692,2]
[320865389,1711651837952,-352.75464932,0.00054693,2]
[320865391,1711651837962,-352.75464932,0.00054693,2]
[320865393,1711651837971,-352.75464932,0.00054694,2]
[320865395,1711651837981,-1955.15128603,0.00054791,4]
[320865397,1711651837990,-285.08182112,0.00054791,4]
[320865399,1711651838000,-626.09738088,0.00054792,2]
[320865401,1711651838010,-4273.96561256,0.00054793,120]
[320865403,1711651838021,-20490.34006599,0.00054793,4]
[320865406,1711651838039,-365.99926219,0.00054793,120]
[320865408,1711651838051,-444.83345366,0.00054793,120]
[320865410,1711651838063,-8192.05375439,0.00054794,61]
[320865412,1711651838074,-375.85748479,0.00054794,120]
[320865414,1711651838084,-500.0,0.00054794,14]
[320865417,1711651838095,-500.0,0.00054794,120]
[320865419,1711651838105,-500.0,0.00054794,120]
[320865421,1711651838115,-500.0,0.00054794,120]
[320865423,1711651838125,-500.0,0.00054794,120]
[320865425,1711651838134,-305.6973971,0.00054794,120]
[320865427,1711651838144,-500.0,0.00054794,120]
[320865429,1711651838154,-500.0,0.00054794,120]
[320865431,1711651838164,-276.9882975,0.00054794,120]
[320865433,1711651838174,-500.95638156,0.00054794,120]
[320865435,1711651838184,-691.21,0.00054794,120]
[320865437,1711651838193,-156.02333038,0.00054794,120]
[320865439,1711651838203,-500.0,0.00054794,120]
[320865441,1711651838213,-500.0,0.00054794,120]
[320865443,1711651838223,-500.0,0.00054794,120]
[320865445,1711651838232,-500.0,0.00054794,120]
[320865447,1711651838242,-500.0,0.00054794,120]
[320865449,1711651838252,-500.0,0.00054794,120]
[320865451,1711651838261,-500.0,0.00054794,120]
[320865453,1711651838271,-500.0,0.00054794,120]
[320865455,1711651838281,-500.0,0.00054794,120]
[320865457,1711651838291,-500.0,0.00054794,120]
[320865459,1711651838300,-500.0,0.00054794,120]
[320865461,1711651838310,-500.0,0.00054794,120]
[320865463,1711651838322,-500.0,0.00054794,120]
[320865465,1711651838332,-500.0,0.00054794,120]
[320865467,1711651838342,-500.0,0.00054794,120]
[320865469,1711651838352,-500.0,0.00054794,120]
[320865471,1711651838361,-500.0,0.00054794,120]
[320865473,1711651838371,-500.0,0.00054794,120]
[320865475,1711651838380,-500.0,0.00054794,120]
[320865477,1711651838390,-607.70830094,0.00054794,120]
[320865478,1711651838400,-500.0,0.00054794,120]
[320865480,1711651838410,-500.0,0.00054794,120]
[320865482,1711651838421,-500.0,0.00054794,120]
[320865484,1711651838430,-285.69417683,0.00054794,120]
[320865486,1711651838439,-500.0,0.00054794,120]
[320865488,1711651838449,-500.0,0.00054794,120]
[320865490,1711651838457,-493.32600004,0.00054794,120]
[320865492,1711651838467,-500.0,0.00054794,120]
[320865494,1711651838476,-500.0,0.00054794,120]
[320865496,1711651838485,-500.0,0.00054794,120]
[320865498,1711651838495,-229.65115844,0.00054794,120]
[320865499,1711651838505,-500.0,0.00054794,120]
[320865502,1711651838516,-500.0,0.00054794,120]
[320865503,1711651838526,-522.83607809,0.00054794,120]
[320865505,1711651838535,-1000.0,0.00054794,120]
[320865507,1711651838544,-1000.0,0.00054794,120]
[320865509,1711651838553,-229.16,0.00054794,120]
[320865511,1711651838562,-598.36819225,0.00054794,120]
[320865513,1711651838573,-500.0,0.00054794,120]
[320865515,1711651838582,-500.0,0.00054794,120]
[320865517,1711651838591,-500.0,0.00054794,120]
[320865519,1711651838600,-500.0,0.00054794,120]
[320865521,1711651838610,-500.0,0.00054794,120]
[320865523,1711651838619,-644.24651359,0.00054794,120]
[320865524,1711651838628,-256.09941801,0.00054794,120]
[320865525,1711651838637,-500.0,0.00054794,120]
[320865526,1711651838646,-500.0,0.00054794,120]
[320865527,1711651838655,-500.0,0.00054794,120]
[320865528,1711651838664,-500.0,0.00054794,120]
[320865529,1711651838673,-500.0,0.00054794,120]
[320865530,1711651838682,-500.0,0.00054794,120]
[320865531,1711651838691,-500.0,0.00054794,120]
[320865532,1711651838700,-500.0,0.00054794,120]
[320865533,1711651838710,-500.0,0.00054794,120]
[320865534,1711651838719,-500.0,0.00054794,120]
[320865535,1711651838728,-500.0,0.00054794,120]
[320865536,1711651838737,-500.0,0.00054794,120]
[320865537,1711651838747,-501.97136362,0.00054794,120]
[320865538,1711651838756,-500.0,0.00054794,120]
[320865539,1711651838765,-496.31275337,0.00054794,120]
[320865540,1711651838774,-500.0,0.00054794,120]
[320865541,1711651838783,-500.0,0.00054794,120]
[320865542,1711651838792,-500.0,0.00054794,120]
[320865543,1711651838801,-500.0,0.00054794,120]
[320865544,1711651838811,-500.0,0.00054794,120]
[320865545,1711651838822,-500.0,0.00054794,120]
[320865546,1711651838831,-500.0,0.00054794,120]
[320865547,1711651838840,-500.0,0.00054794,120]
[320865548,1711651838849,-500.0,0.00054794,120]
[320865549,1711651838858,-500.0,0.00054794,120]
[320865550,1711651838867,-500.0,0.00054794,120]
[320865551,1711651838877,-500.0,0.00054794,120]
[320865552,1711651838886,-500.0,0.00054794,120]
[320865553,1711651838895,-500.0,0.00054794,120]
[320865554,1711651838904,-500.0,0.00054794,120]
[320865555,1711651838913,-500.0,0.00054794,120]
[320865557,1711651838922,-500.0,0.00054794,120]
[320865558,1711651838931,-500.0,0.00054794,120]
[320865560,1711651838941,-500.0,0.00054794,120]
[320865562,1711651838950,-500.0,0.00054794,120]
[320865564,1711651838960,-500.0,0.00054794,120]
[320865566,1711651838970,-500.0,0.00054794,120]
[320865569,1711651838979,-500.0,0.00054794,120]
[320865571,1711651838988,-500.0,0.00054794,120]
[320865573,1711651838997,-500.0,0.00054794,120]
[320865575,1711651839007,-500.0,0.00054794,120]
[320865577,1711651839019,-500.0,0.00054794,120]
[320865579,1711651839029,-500.0,0.00054794,120]
[320865581,1711651839038,-500.0,0.00054794,120]
[320865583,1711651839047,-500.0,0.00054794,120]
[320865585,1711651839057,-500.0,0.00054794,120]
[320865587,1711651839068,-339.09,0.00054794,120]
[320865589,1711651839079,-500.0,0.00054794,120]
[320865591,1711651839088,-500.0,0.00054794,120]
[320865592,1711651839098,-500.0,0.00054794,120]
[320865594,1711651839108,-500.0,0.00054794,120]
[320865597,1711651839117,-500.0,0.00054794,120]
[320865599,1711651839127,-498.80047884,0.00054794,120]
[320865601,1711651839137,-500.0,0.00054794,120]
[320865603,1711651839147,-296.6054176,0.00054794,120]
[320865605,1711651839158,-500.0,0.00054794,120]
[320865607,1711651839169,-500.0,0.00054794,120]
[320865609,1711651839180,-500.0,0.00054794,120]
[320865611,1711651839189,-500.0,0.00054794,120]
[320865613,1711651839199,-175.55550186,0.00054794,120]
[320865615,1711651839209,-500.83025064,0.00054794,120]
[320865617,1711651839219,-503.99608416,0.00054794,120]
[320865619,1711651839228,-500.0,0.00054794,120]
[320865621,1711651839238,-500.0,0.00054794,120]
[320865622,1711651839247,-2071.41,0.00054794,120]
[320865624,1711651839256,-2071.41,0.00054794,120]
[320865627,1711651839266,-2071.41,0.00054794,120]
[320865629,1711651839275,-2071.41,0.00054794,120]
[320865630,1711651839284,-500.0,0.00054794,120]
[320865632,1711651839293,-500.0,0.00054794,120]
[320865635,1711651839303,-500.0,0.00054794,120]
[320865637,1711651839312,-500.0,0.00054794,120]
[320865639,1711651839325,-521.85,0.00054794,120]
[320865641,1711651839334,-500.0,0.00054794,120]
[320865644,1711651839344,-500.0,0.00054794,120]
[320865648,1711651839353,-500.0,0.00054794,120]
[320865651,1711651839362,-500.0,0.00054794,120]
[320865653,1711651839372,-500.0,0.00054794,120]
[320865654,1711651839381,-500.0,0.00054794,120]
[320865656,1711651839390,-500.0,0.00054794,120]
[320865658,1711651839399,-500.0,0.00054794,120]
[320865660,1711651839409,-614.94,0.00054794,120]
[320865662,1711651839418,-614.94,0.00054794,120]
[320865665,1711651839427,-500.0,0.00054794,120]
[320865668,1711651839437,-500.0,0.00054794,120]
[320865671,1711651839447,-500.0,0.00054794,120]
[320865673,1711651839456,-500.0,0.00054794,120]
[320865675,1711651839465,-571.14687994,0.00054794,120]
[320865677,1711651839474,-500.0,0.00054794,120]
[320865679,1711651839483,-500.18221341,0.00054794,120]
[320865681,1711651839492,-500.71159894,0.00054794,120]
[320865683,1711651839501,-500.0,0.00054794,120]
[320865685,1711651839511,-500.0,0.00054794,120]
[320865687,1711651839520,-500.83631033,0.00054794,120]
[320865689,1711651839529,-500.0,0.00054794,120]
[320865691,1711651839538,-500.0,0.00054794,120]
[320865693,1711651839547,-458.46666244,0.00054794,120]
[320865695,1711651839556,-500.0,0.00054794,120]
[320865697,1711651839566,-500.0,0.00054794,120]
[320865699,1711651839577,-500.0,0.00054794,120]
[320865701,1711651839586,-224.79861541,0.00054794,120]
[320865703,1711651839595,-500.0,0.00054794,120]
[320865705,1711651839604,-500.0,0.00054794,120]
[320865707,1711651839613,-500.0,0.00054794,120]
[320865709,1711651839622,-500.0,0.00054794,120]
[320865711,1711651839633,-500.0,0.00054794,120]
[320865713,1711651839641,-500.0,0.00054794,120]
[320865715,1711651839651,-308.12,0.00054794,120]
[320865717,1711651839660,-500.0,0.00054794,120]
[320865719,1711651839669,-500.0,0.00054794,120]
[320865721,1711651839678,-429.78623209,0.00054794,120]
[320865723,1711651839687,-665.86,0.00054794,90]
[320865725,1711651839696,-665.86,0.00054794,90]
[320865727,1711651839705,-500.0,0.00054794,120]
[320865729,1711651839715,-665.86,0.00054794,90]
[320865731,1711651839724,-500.0,0.00054794,120]
[320865733,1711651839734,-500.0,0.00054794,120]
[320865735,1711651839743,-500.0,0.00054794,120]
[320865737,1711651839752,-500.0,0.00054794,120]
[320865739,1711651839761,-500.0,0.00054794,120]
[320865741,1711651839770,-500.0,0.00054794,120]
[320865742,1711651839779,-573.5905054,0.00054794,120]
[320865744,1711651839789,-500.0,0.00054794,120]
[320865747,1711651839800,-500.0,0.00054794,120]
[320865749,1711651839808,-500.0,0.00054794,120]
[320865750,1711651839821,-500.0,0.00054794,120]
[320865752,1711651839831,-500.0,0.00054794,120]
[320865754,1711651839841,-500.0,0.00054794,120]
[320865756,1711651839851,-500.0,0.00054794,120]
[320865758,1711651839861,-504.98808329,0.00054794,120]
[320865760,1711651839870,-500.0,0.00054794,120]
[320865762,1711651839879,-500.0,0.00054794,120]
[320865764,1711651839889,-500.0,0.00054794,120]
[320865766,1711651839898,-500.0,0.00054794,21]
[320865768,1711651839907,-500.0,0.00054794,21]
[320865770,1711651839917,-500.0,0.00054794,21]
[320865772,1711651839926,-500.0,0.00054794,120]
[320865774,1711651839935,-500.0,0.00054794,120]
[320865776,1711651839945,-500.0,0.00054794,120]
[320865778,1711651839954,-501.94934298,0.00054794,120]
[320865780,1711651839963,-500.0,0.00054794,120]
[320865782,1711651839972,-500.0,0.00054794,120]
[320865784,1711651839981,-500.0,0.00054794,120]
[320865786,1711651839990,-500.0,0.00054794,120]
[320865788,1711651839999,-500.0,0.00054794,120]
[320865790,1711651840009,-500.0,0.00054794,120]
[320865792,1711651840020,-500.0,0.00054794,120]
[320865794,1711651840029,-500.0,0.00054794,120]
[320865803,1711651840041,-500.0,0.00054794,120]
[320865806,1711651840135,-500.0,0.00054794,120]
[320865808,1711651840144,-500.0,0.00054794,120]
[320865810,1711651840153,-151.10203639,0.00054794,120]
[320865812,1711651840163,-500.0,0.00054794,120]
[320865814,1711651840173,-402.82958316,0.00054794,120]
[320865816,1711651840182,-87.80547269,0.00054794,120]
[320865824,1711651840241,-412.19452731,0.00054794,120]
[320865826,1711651840251,-500.0,0.00054794,120]
[320865828,1711651840260,-500.0,0.00054794,120]
[320865830,1711651840269,-445.06047322,0.00054794,120]
[320865832,1711651840279,-500.0,0.00054794,120]
[320865834,1711651840287,-500.0,0.00054794,120]
[320865836,1711651840297,-500.36075839,0.00054794,120]
[320865838,1711651840306,-500.0,0.00054794,120]
[320865839,1711651840315,-500.0,0.00054794,120]
[320865841,1711651840325,-500.0,0.00054794,120]
[320865843,1711651840334,-500.0,0.00054794,120]
[320865845,1711651840343,-500.0,0.00054794,120]
[320865847,1711651840352,-500.0,0.00054794,120]
[320865849,1711651840361,-166.31,0.00054794,120]
[320865851,1711651840371,-500.0,0.00054794,120]
[320865853,1711651840380,-500.56483322,0.00054794,120]
[320865855,1711651840389,-139.69307545,0.00054794,120]
[320865858,1711651840402,-360.30692455,0.00054794,120]
[320865860,1711651840411,-500.0,0.00054794,120]
[320865862,1711651840421,-500.0,0.00054794,120]
[320865864,1711651840430,-500.0,0.00054794,120]
[320865866,1711651840439,-291.74448332,0.00054794,120]
[320865868,1711651840448,-313.58,0.00054794,120]
[320865869,1711651840457,-1635.99,0.00054794,120]
[320865871,1711651840466,-1635.99,0.00054794,120]
[320865873,1711651840475,-1635.99,0.00054794,120]
[320865875,1711651840483,-413.49,0.00054794,120]
[320865877,1711651840492,-500.0,0.00054794,120]
[320865879,1711651840501,-500.0,0.00054794,120]
[320865881,1711651840510,-500.0,0.00054794,120]
[320865883,1711651840519,-500.48826394,0.00054794,2]
[320865885,1711651840528,-500.0,0.00054794,120]
[320865887,1711651840537,-500.0,0.00054794,120]
[320865889,1711651840546,-500.0,0.00054794,120]
[320865891,1711651840555,-500.0,0.00054794,120]
[320865893,1711651840564,-500.0,0.00054794,120]
[320865895,1711651840574,-500.0,0.00054794,120]
[320865897,1711651840583,-500.0,0.00054794,120]
[320865899,1711651840592,-460.16,0.00054794,120]
[320865901,1711651840600,-190.0,0.00058213,120]
[320865903,1711651840610,-500.0,0.00059997,120]
[320865905,1711651840619,-500.0,0.00059997,120]
[320865907,1711651840628,-166.6,0.00059997,120]
[320865909,1711651840637,-500.0,0.00059997,120]
[320865911,1711651840646,-500.0,0.00059997,120]
[320865913,1711651840654,-500.0,0.00059997,120]
[320865915,1711651840663,-1635.99,0.00059997,120]
[320865917,1711651840672,-500.0,0.00059998,120]
[320865919,1711651840681,-500.79271676,0.00059998,120]
[320865921,1711651840690,-500.54397557,0.00059998,120]
[320865922,1711651840699,-500.0,0.00059998,120]
[320865924,1711651840709,-501.71069352,0.00059998,120]
[320865926,1711651840717,-587.12,0.00059998,120]
[320865928,1711651840726,-500.0,0.00059998,120]
[320865931,1711651840737,-614.94,0.00059998,120]
[320865933,1711651840746,-500.0,0.00059998,120]
[320865935,1711651840755,-432.95785474,0.00059998,120]
[320865937,1711651840764,-500.0,0.00059998,120]
[320865938,1711651840773,-500.0,0.00059998,120]
[320865940,1711651840782,-500.0,0.00059998,120]
[320865942,1711651840791,-500.0,0.00059998,120]
[320865944,1711651840800,-500.0,0.00059998,120]
[320865946,1711651840809,-151.0,0.00059998,120]
[320865948,1711651840818,-500.0,0.00059998,120]
[320865950,1711651840828,-691.21,0.00059999,120]
[320865952,1711651840838,-691.21,0.00059999,120]
[320865954,1711651840848,-500.0,0.00059999,120]
[320865956,1711651840857,-500.0,0.00059999,120]
[320865958,1711651840867,-162.39631788,0.00059999,120]
[320865960,1711651840877,-500.0,0.00059999,120]
[320865962,1711651840886,-151.0,0.00059999,120]
[320865964,1711651840895,-151.0,0.00059999,120]
[320865966,1711651840904,-2071.41,0.00059999,120]
[320865968,1711651840914,-2071.41,0.00059999,120]
[320865970,1711651840923,-500.0,0.00059999,120]
[320865972,1711651840933,-614.94,0.00059999,120]
[320865974,1711651840942,-277.543761,0.00059999,10]
[320865976,1711651840951,-500.0,0.00059999,120]
[320865978,1711651840963,-665.86,0.00059999,90]
[320865980,1711651840973,-500.0,0.00059999,120]
[320865982,1711651840982,-231.54663609,0.00059999,120]
[320865984,1711651840991,-500.0,0.00059999,21]
[320865986,1711651841001,-500.0,0.00059999,120]
[320865988,1711651841011,-500.0,0.00059999,120]
[320865990,1711651841023,-500.0,0.00059999,120]
[320865992,1711651841036,-500.0,0.00059999,120]
[320865994,1711651841045,-500.0,0.00059999,120]
[320865996,1711651841054,-500.0,0.00059999,120]
[320865998,1711651841067,-252.5154,0.00059999,120]
[320866000,1711651841082,-1480.84902581,0.00059999,120]
[320866004,1711651841106,-500.0,0.00054794,120]
[320866006,1711651841118,-155.14097419,0.00059999,120]
[320866008,1711651841129,-1635.99,0.00059999,120]
[320866010,1711651841141,-465.34652842,0.00059999,120]
[320866012,1711651841150,-162.96945388,0.00059999,120]
[320866014,1711651841160,-500.0,0.00059999,120]
[320866017,1711651841172,-18295.4730434,0.0006,2]
[320866019,1711651841186,-33110.06389116,0.0006,2]
[320866021,1711651841197,-2155.63639607,0.0006,120]
[320866024,1711651841209,-151.0,0.0006,120]
[320866026,1711651841220,-309.799688,0.0006,120]
[320866028,1711651841232,-309.799688,0.0006,120]
[320866030,1711651841244,-151.0,0.0006,120]
[320866033,1711651841255,-151.0,0.0006,120]
[320866035,1711651841266,-151.0,0.0006,120]
[320866037,1711651841277,-151.0,0.0006,120]
[320866039,1711651841288,-151.0,0.0006,120]
[320866041,1711651841298,-151.804752,0.0006,120]
[320866043,1711651841308,-665.86,0.00061483,90]
[320866046,1711651841318,-500.0,0.00061483,21]
[320866048,1711651841331,-648.64,0.00061483,120]
[320866050,1711651841342,-500.0,0.00061483,120]
[320866052,1711651841352,-183.83548464,0.00061484,7]
[320866054,1711651841364,-265.979129,0.00061837,120]
[320866056,1711651841374,-352.0,0.000635,120]
[320866059,1711651841386,-1983.0194972,0.0006479,7]
[320866061,1711651841397,-265.4602,0.00065,30]
[320866063,1711651841407,-150.0,0.00065753,120]
[320866065,1711651841419,-200.0,0.00065987,2]
[320866067,1711651841429,-300.0,0.00066575,120]
[320866069,1711651841440,-500.0,0.00066637,120]
[320866071,1711651841450,-503.01198469,0.00066637,120]
[320866074,1711651841459,-691.21,0.00066638,120]
[320866076,1711651841468,-500.0,0.00066638,120]
[320866078,1711651841480,-178.75287728,0.00066638,120]
[320866080,1711651841493,-500.0,0.00066638,120]
[320866082,1711651841503,-954.30853807,0.00066886,120]
[320866085,1711651841514,-954.30853807,0.00066887,120]
[320866087,1711651841524,-954.30853807,0.00066898,120]
[320866089,1711651841536,-282.2054133,0.00066907,120]
[320866092,1711651841551,-672.10312477,0.00066907,120]
[320866094,1711651841562,-954.30853807,0.00066955,120]
[320866096,1711651841575,-607.25128864,0.00066962,120]
[320866244,1711651843113,-1328.21797671,0.00054793,4]
[320866246,1711651843124,-1539.79390352,0.00054793,4]
[320866248,1711651843135,-181.98811977,0.00054794,120]
[320866253,1711651843173,-318.01188023,0.00054794,120]
[320866256,1711651843184,-500.0,0.00054794,120]
[320866258,1711651843196,-500.0,0.00054794,120]
[320866260,1711651843207,-347.05724943,0.00066962,120]
[320866263,1711651843218,-954.30853807,0.00066963,120]
[320866265,1711651843230,-200.0,0.00066987,2]
[320866267,1711651843240,-450.0,0.00067397,120]
[320866269,1711651843250,-2071.41,0.00067489,120]
[320866271,1711651843260,-614.94,0.00067489,120]
[320866273,1711651843269,-500.0,0.00067489,120]
[320866275,1711651843279,-500.0,0.00067491,120]
[320866277,1711651843289,-500.0,0.00067491,120]
[320866279,1711651843300,-500.0,0.00067491,120]
[320866281,1711651843310,-135.62822624,0.00067491,120]
[320866558,1711651845912,-224.06177376,0.00067491,120]
[320866561,1711651845924,-200.0,0.00067987,2]
[320866563,1711651845934,-600.0,0.00068219,120]
[320866565,1711651845945,-500.0,0.00068398,120]
[320866567,1711651845956,-151.0,0.00068399,120]
[320866569,1711651845967,-309.799688,0.00068399,120]
[320866571,1711651845977,-309.799688,0.00068399,120]
[320866573,1711651845987,-151.0,0.00068399,120]
[320866575,1711651845997,-151.0,0.00068399,120]
[320866578,1711651846008,-151.0,0.00068399,120]
[320866580,1711651846019,-167.224876,0.000684,2]
[320866582,1711651846030,-203.17387108,0.00068484,3]
[320866584,1711651846041,-286.18677519,0.00068491,90]
[320868131,1711652073392,8483.7630865,0.00021,2]
[320868132,1711652761565,400.05911161,0.000189,2]
[320868133,1711652761836,400.05911161,0.000239,2]
[320868146,1711653029491,193.07694713,0.000239,2]
[320868167,1711653032006,-1574.70395347,0.00028875,2]
[320868170,1711653032017,-302.82079948,0.00028876,2]
[320868172,1711653032027,-204.93563212,0.00028877,2]
[320868174,1711653032037,-2606.85625081,0.00028877,2]
[320868176,1711653032046,-305.31148423,0.00028878,2]
[320868178,1711653032056,-323.06201414,0.00028878,2]
[320868180,1711653032066,-686.36675448,0.00028879,2]
[320868182,1711653032075,-535.7627076,0.00028879,2]
[320868184,1711653032085,-154.9690062,0.0002888,2]
[320868185,1711653032094,-560.43965227,0.0002888,2]
[320868187,1711653032104,-210.52208177,0.00028881,2]
[320868189,1711653032114,-154.9690062,0.00028881,2]
[320868191,1711653032124,-400.05911161,0.000289,2]
[320868193,1711653032133,-5745.0943654,0.00030628,2]
[320868195,1711653032143,-413.87239,0.00034798,2]
[320868196,1711653032153,-154.9690062,0.00034955,4]
[320868197,1711653032162,-155.89703315,0.00034955,4]
[320868198,1711653032172,-319.36573979,0.00034956,4]
[320868199,1711653032182,-205.1816568,0.00034956,4]
[320868200,1711653032192,-24900.0,0.00034957,2]
[320868201,1711653032202,-569.91523562,0.00036886,2]
[320868202,1711653032212,-191.666687,0.00036986,2]
[320868203,1711653032222,-191.666689,0.00036986,2]
[320868204,1711653032231,-683.328696,0.00037922,2]
[320868205,1711653032240,-177.319419,0.00038118,120]
[320868206,1711653032250,-7453.12783391,0.00038402,4]
[320868207,1711653032259,-360.27889983,0.00038409,4]
[320868208,1711653032269,-250.0,0.00038458,2]
[320868209,1711653032278,-212.8804624,0.00038693,2]
[320868210,1711653032288,-166.82348041,0.0004,4]
[320868211,1711653032298,-150.0,0.000403,15]
[320868212,1711653032308,-300.0,0.000406,15]
[320868213,1711653032317,-569.91523559,0.00041338,2]
[320868214,1711653032327,-1955.15128603,0.00041585,4]
[320868215,1711653032337,-20490.34006599,0.00041586,4]
[320868216,1711653032554,-3645.58449641,0.00041673,2]
[320868217,1711653032564,-569.91523559,0.0004579,2]
[320868218,1711653032574,-177.319419,0.00047648,120]
[320868219,1711653032583,-6273.96561256,0.0005,120]
[320868220,1711653032593,-569.91523559,0.00050242,2]
[320868221,1711653032603,-154.9845,0.00052052,4]
[320868222,1711653032612,-413.87239,0.00052197,2]
[320868223,1711653032621,-264.38944731,0.00053482,4]
[320868224,1711653032631,-569.91523559,0.00054694,2]
[320868225,1711653032640,-649.15212018,0.00054791,120]
[320868226,1711653032649,-16384.10750879,0.00054792,61]
[320868227,1711653032659,-5192.42564352,0.00054792,4]
[320868228,1711653032668,-155.00310006,0.00054792,4]
[320868229,1711653032678,-2474.38000184,0.00054792,4]
[320868230,1711653032687,-16035.34504841,0.00054792,30]
[320868231,1711653032697,-606.19948353,0.00054793,120]
[320868232,1711653032706,-265.1372965,0.00054793,120]
[320868233,1711653032715,-500.0,0.00054793,120]
[320868234,1711653032725,-195.97542407,0.00054793,120]
[320868235,1711653032737,-341.96930114,0.00054793,120]
[320868236,1711653032746,-450.73535203,0.00054793,120]
[320868237,1711653032755,-399.24223577,0.00054793,31]
[320868238,1711653032765,-353.99827844,0.00054793,120]
[320868239,1711653032774,-193.17229372,0.00054793,120]
[320868240,1711653032784,-372.5925389,0.00054794,14]
[320868241,1711653032796,-127.4074611,0.00054794,14]
[320868242,1711653032806,-269.76383725,0.00054794,120]
[320868254,1711653037955,-3227.56095627,0.00028877,2]
[320868255,1711653037965,-230.23616275,0.00054794,120]
[320868256,1711653037974,-500.0,0.00054794,120]
[320868257,1711653037983,-341.14378185,0.00054794,120]
[320868258,1711653037993,-500.0,0.00054794,120]
[320868259,1711653038002,-500.0,0.00054794,120]
[320868260,1711653038012,-500.0,0.00054794,120]
[320868261,1711653038022,-299.55910038,0.00054794,120]
[320868262,1711653038032,-500.0,0.00054794,120]
[320868263,1711653038041,-500.0,0.00054794,120]
[320868264,1711653038051,-500.0,0.00054794,120]
[320868265,1711653038060,-632.56,0.00054794,120]
[320868266,1711653038070,-500.0,0.00054794,120]
[320868267,1711653038080,-500.0,0.00054794,120]
[320868268,1711653038089,-500.0,0.00054794,120]
[320868269,1711653038098,-500.0,0.00054794,120]
[320868270,1711653038107,-500.0,0.00054794,120]
[320868271,1711653038117,-500.0,0.00054794,120]
[320868272,1711653038126,-500.0,0.00054794,120]
[320868273,1711653038135,-339.09,0.00054794,120]
[320868274,1711653038144,-500.0,0.00054794,120]
[320868275,1711653038154,-500.0,0.00054794,120]
[320868276,1711653038163,-498.80047884,0.00054794,120]
[320868277,1711653038173,-500.0,0.00054794,120]
[320868278,1711653038181,-500.0,0.00054794,120]
[320868279,1711653038191,-500.0,0.00054794,120]
[320868280,1711653038201,-500.0,0.00054794,120]
[320868281,1711653038210,-500.0,0.00054794,120]
[320868282,1711653038219,-296.6054176,0.00054794,120]
[320868283,1711653038228,-500.0,0.00054794,120]
[320868284,1711653038237,-500.0,0.00054794,120]
[320868285,1711653038246,-500.0,0.00054794,120]
[320868286,1711653038255,-175.55550186,0.00054794,120]
[320868287,1711653038265,-500.0,0.00054794,120]
[320868288,1711653038274,-500.0,0.00054794,120]